[Event "33rd ECCC Open 2017"]
[Site "Antalya"]
[Date "2017.10.12"]
[Round "5"]
[White "Mihajlov, Sebastian"]
[Black "Kvisvik, Brede"]
[Result "1-0"]
[ECO "A48"]
[WhiteElo "2393"]
[BlackElo "2296"]
[Annotator "NA"]
[PlyCount "91"]
[EventType "team-tourn"]
[EventCountry "TUR"]
[SourceTitle "playchess.com"]
[Source "ChessBase"]
[SourceQuality "1"]
[WhiteTeam "Oslo"]
[BlackTeam "Valerenga"]
[TimeControl "40/5400+30:1800+30"]

1. d4 {[%emt 0:00:30]} d5 {[%emt 0:01:00]} 2. Nf3 {[%emt 0:00:30]} Nf6 {[%emt 0:00:30]} 3. e3 {[%emt 0:00:30]} c5 {[%emt 0:00:30]} 4. Bd3 {[%emt 0:00:30]} Nc6 {[%emt 0:00:30]} 5. O-O {[%emt 0:00:30]} g6 {[%emt 0:01:30]} 6. b3 {[%emt 0:02:30]} cxd4 {[%emt 0:00:30]} 7. exd4 {[%emt 0:00:30]} Bg7 {[%emt 0:00:30]} 8. Bb2 {[%emt 0:01:30]} O-O {[%emt 0:00:00]} 9. Nbd2 {[%emt 0:00:30] A48: 1 d4 Nf6 2 Nf3 g6: Torre, London and Colle Systems} (9. Re1 Bg4 10. h3 Bxf3 11. Qxf3 Ne4 12. c3 f5 13. Qe2 e5 14. f3 exd4 15. fxe4 fxe4 16. Bb5 Qb6 {0-1 (24) Palm,N (2332)-Edouard,R (2679) Helsingor 2014}) 9... Nb4 {[%emt 0:01:00]} 10. Be2 {[%emt 0:05:30]} Bf5 {[%emt 0:00:30]} 11. Ne1 {[%emt 0:05:30]} a5 $146 {[%emt 0:15:30]} ({Predecessor:} 11... Rc8 12. c3 Nc6 13. Bd3 Bg4 14. Be2 Bxe2 15. Qxe2 {0-1 (27) Rojas Keim,L (2397)-Cruz,C (2500) Mollet del Valles 2011}) 12. c3 {[%emt 0:02:30]} Nc6 {[%emt 0:01:30]} 13. Nc2 {[%emt 0:00:30]} Bd7 {[%emt 0:06:30]} 14. a4 {[%emt 0:04:30]} Na7 {[%emt 0:00:30]} 15. Bd3 {[%emt 0:07:30]} Re8 {[%emt 0:04:30]} 16. Re1 {[%emt 0:10:30]} Qc7 {[%emt 0:03:30]} 17. Ne3 {[%emt 0:11:30]} Nc6 {[%emt 0:03:30]} 18. Nf3 {[%emt 0:04:30]} Rad8 {[%emt 0:01:30]} 19. Bb5 {[%emt 0:03:30]} e6 {[%emt 0:07:30]} 20. Rc1 {[%emt 0:01:30]} Qb8 {[%emt 0:02:30]} 21. g3 {[%emt 0:07:30]} Ne7 {[%emt 0:00:30]} 22. Qd3 {[%emt 0:01:30]} Ne4 {[%emt 0:03:30]} 23. c4 {[%emt 0:05:30]} Nd6 {[%emt 0:05:30]} 24. c5 {[%emt 0:02:30]} Ne4 {[%emt 0:01:30]} 25. Ne5 {[%emt 0:05:43]} Bc6 {[%emt 0:03:30]} 26. f3 {[%emt 0:01:40]} Nf6 {[%emt 0:00:00]} 27. Bc3 {[%emt 0:00:41]} Qa7 {[%emt 0:00:00]} 28. Qd2 {[%emt 0:00:35]} Ra8 {[%emt 0:00:30]} 29. N3g4 {[%emt 0:00:21]} Nxg4 $14 {[%emt 0:01:30]} 30. fxg4 {[%emt 0:00:29]} Bxe5 {[%emt 0:13:30]} 31. Rxe5 {[%emt 0:00:30]} b6 {[%emt 0:00:30]} 32. Qf4 {[%emt 0:03:57]} Rac8 {[%emt 0:02:30]} 33. Qf6 {[%emt 0:03:31]} Kf8 {[%emt 0:04:52]} 34. Rxe6 {[%emt 0:00:05]} Ng8 {[%emt 0:00:00]} 35. Rxe8+ {[%emt 0:00:00]} Bxe8 {[%emt 0:00:00]} 36. Qxb6 {[%emt 0:00:00]} Qe7 {[%emt 0:00:00]} 37. Re1 {[%emt 0:00:00]} Qg5 {[%emt 0:00:00]} 38. Qd6+ {[%emt 0:00:00]} Kg7 {[%emt 0:00:00]} 39. Bxe8 {[%emt 0:00:00]} Nf6 {[%emt 0:00:00]} 40. Bb5 {[%emt 0:00:00]} Ne4 {[%emt 0:08:08]} 41. Rxe4 {[%emt 0:02:58]} dxe4 {[%emt 0:00:30]} 42. Qf4 {[%emt 0:00:30]} Qe7 {[%emt 0:00:30]} 43. d5+ {[%emt 0:00:30]} Kg8 {[%emt 0:00:30]} 44. d6 {[%emt 0:00:30]} Qa7 {[%emt 0:00:00]} 45. Qe5 {[%emt 0:00:30]} Rxc5 {[%emt 0:01:00]} 46. Qh8# {[%emt 0:00:30]} 1-0

[Event "33rd ECCC Open 2017"]
[Site "Antalya"]
[Date "2017.10.12"]
[Round "5"]
[White "Saraci, Nderim"]
[Black "Thorfinnsson, Bjorn"]
[Result "1-0"]
[ECO "A33"]
[WhiteElo "2393"]
[BlackElo "2398"]
[Annotator "NA"]
[PlyCount "159"]
[EventType "team-tourn"]
[EventCountry "TUR"]
[SourceTitle "playchess.com"]
[Source "ChessBase"]
[SourceQuality "1"]
[WhiteTeam "Hasan Pristina"]
[BlackTeam "Viking"]
[TimeControl "40/5400+30:1800+30"]

1. c4 {[%emt 0:00:30]} Nf6 {[%emt 0:01:00]} 2. Nf3 {[%emt 0:00:30]} c5 {[%emt 0:00:30]} 3. Nc3 {[%emt 0:03:30]} Nc6 {[%emt 0:00:30]} 4. d4 {[%emt 0:00:30]} cxd4 {[%emt 0:00:30]} 5. Nxd4 {[%emt 0:00:00]} e6 {[%emt 0:07:30]} 6. Ndb5 {[%emt 0:02:00]} d5 {[%emt 0:06:30]} 7. cxd5 {[%emt 0:00:30]} Nxd5 {[%emt 0:00:30]} 8. Nxd5 {[%emt 0:00:30]} exd5 {[%emt 0:00:30]} 9. Qxd5 {[%emt 0:10:30] A33: Symmetrical English: 2 Nf3 Nf6 3 d4 cxd4 4 Nxd4 e6 5 Nc3 Nc6} (9. e3 Be7 10. Bd2 a6 11. Nd4 Nxd4 12. exd4 Qb6 13. Bc3 Qg6 14. Qf3 Bg4 15. Qe3 O-O 16. Bd3 f5 {0-1 (57) Handler,L (2398)-Melkumyan,H (2589) Graz 2014}) 9... Bb4+ {[%emt 0:01:30]} 10. Bd2 {[%emt 0:01:30]} Be6 {[%emt 0:03:30]} 11. Qxd8+ {[%emt 0:01:30]} Rxd8 {[%emt 0:00:30]} 12. Bc3 {[%emt 0:02:30]} O-O {[%emt 0:03:30]} 13. e3 {[%emt 0:07:30]} a6 {[%emt 0:01:30]} 14. Na3 $146 {[%emt 0:01:30]} ({Predecessor:} 14. a3 Bc5 15. Nd4 Bxd4 16. exd4 Nxd4 {0-1 (40) Incutto,C-Dos Santos,F Olivos 1993}) 14... Bxc3+ {[%emt 0:01:30]} 15. bxc3 {[%emt 0:00:30]} Ne5 {[%emt 0:00:00]} 16. Nc2 {[%emt 0:10:30]} Nd3+ {[%emt 0:06:00]} 17. Bxd3 {[%emt 0:01:30]} Rxd3 {[%emt 0:00:30]} 18. Nd4 {[%emt 0:01:30]} Bd5 {[%emt 0:12:30]} 19. O-O {[%emt 0:07:30]} Rc8 {[%emt 0:01:30]} 20. h3 {[%emt 0:05:30]} Kf8 {[%emt 0:02:30]} 21. a4 {[%emt 0:03:30]} Rdxc3 {[%emt 0:01:30]} 22. Rfd1 {[%emt 0:00:30]} R8c5 {[%emt 0:01:30]} 23. Nf5 {[%emt 0:05:30]} g6 {[%emt 0:07:30]} 24. e4 {[%emt 0:01:30]} Bc6 {[%emt 0:00:30]} 25. Rd8+ {[%emt 0:00:30]} Be8 {[%emt 0:00:30]} 26. Nd6 {[%emt 0:00:30]} Rc1+ {[%emt 0:00:30]} 27. Rxc1 {[%emt 0:00:30]} Rxc1+ {[%emt 0:00:30]} 28. Kh2 {[%emt 0:00:30]} Ke7 {[%emt 0:00:30]} 29. Rxe8+ {[%emt 0:00:30]} Kxd6 {[%emt 0:00:00]} 30. Rd8+ {[%emt 0:00:30]} Kc7 {[%emt 0:05:00]} 31. Rf8 {[%emt 0:00:30]} Ra1 {[%emt 0:00:30]} 32. Rxf7+ {[%emt 0:00:30]} Kc6 {[%emt 0:00:30]} 33. Rf6+ {[%emt 0:12:42]} Kc5 {[%emt 0:01:30]} 34. Rf7 {[%emt 0:00:14]} b6 {[%emt 0:00:30]} 35. Rc7+ {[%emt 0:00:08]} Kb4 {[%emt 0:06:30]} 36. e5 {[%emt 0:02:37]} Re1 {[%emt 0:01:30]} 37. Rc6 {[%emt 0:10:17]} Ka5 {[%emt 0:01:30]} 38. f4 {[%emt 0:01:20]} Re4 {[%emt 0:22:24]} 39. Kg3 {[%emt 0:00:34]} Rxa4 {[%emt 0:00:05]} 40. e6 {[%emt 0:00:00]} Rd4 {[%emt 0:05:01]} 41. e7 {[%emt 0:05:38]} Re4 {[%emt 0:00:30]} 42. Rc7 {[%emt 0:00:30]} b5 {[%emt 0:01:30]} 43. Kf3 {[%emt 0:00:30]} Re1 {[%emt 0:00:00]} 44. Rb7 {[%emt 0:00:30]} Kb4 {[%emt 0:02:00]} 45. g4 {[%emt 0:01:30]} Kc5 {[%emt 0:00:30]} 46. f5 {[%emt 0:01:30]} gxf5 {[%emt 0:00:30]} 47. gxf5 {[%emt 0:00:30]} Kc6 {[%emt 0:00:00]} 48. Ra7 {[%emt 0:00:30]} Kb6 {[%emt 0:00:00]} 49. Rxa6+ {[%emt 0:00:30]} Kxa6 {[%emt 0:00:30]} 50. f6 {[%emt 0:00:30]} b4 {[%emt 0:00:30]} 51. f7 {[%emt 0:00:00]} Rxe7 {[%emt 0:00:30]} 52. f8=Q {[%emt 0:00:00]} Rb7 {[%emt 0:00:00]} 53. Ke3 {[%emt 0:01:30]} Ka7 {[%emt 0:01:00]} 54. Qc5+ {[%emt 0:00:30]} Kb8 {[%emt 0:00:30]} 55. Qe5+ {[%emt 0:03:30]} Ka8 {[%emt 0:00:30]} 56. Qe8+ {[%emt 0:01:30]} Ka7 {[%emt 0:00:30]} 57. Qa4+ {[%emt 0:00:30]} Kb8 {[%emt 0:00:30]} 58. Qb3 {[%emt 0:00:00]} Re7+ {[%emt 0:01:30]} 59. Kd4 {[%emt 0:00:00]} Rd7+ {[%emt 0:00:30]} 60. Kc5 {[%emt 0:00:30]} Rc7+ {[%emt 0:00:00]} 61. Kd6 {[%emt 0:00:30]} Rb7 {[%emt 0:00:00]} 62. h4 {[%emt 0:00:30]} Ka7 {[%emt 0:00:30]} 63. Kc6 {[%emt 0:00:30]} Rb6+ {[%emt 0:00:30]} 64. Kc5 {[%emt 0:00:30]} Rb7 {[%emt 0:00:30]} 65. Kd4 {[%emt 0:02:30]} Rd7+ {[%emt 0:00:30]} 66. Ke3 {[%emt 0:00:00]} Re7+ {[%emt 0:00:30]} 67. Kd2 {[%emt 0:00:00]} Rd7+ {[%emt 0:00:30]} 68. Kc2 {[%emt 0:00:30]} Rc7+ {[%emt 0:00:30]} 69. Kb2 {[%emt 0:01:30]} Rb7 {[%emt 0:01:30]} 70. Qe3+ {[%emt 0:00:30]} Kb8 {[%emt 0:00:30]} 71. Kb3 {[%emt 0:00:30]} Ka8 {[%emt 0:00:30]} 72. Qe8+ {[%emt 0:00:30]} Ka7 {[%emt 0:00:30]} 73. Qc8 {[%emt 0:00:00]} Rb5 {[%emt 0:02:30]} 74. Ka4 {[%emt 0:02:00]} Rb7 {[%emt 0:00:30]} 75. Ka5 {[%emt 0:00:30]} b3 {[%emt 0:00:30]} 76. Qc5+ {[%emt 0:00:30]} Kb8 {[%emt 0:01:30]} 77. Ka6 {[%emt 0:00:00]} Rd7 {[%emt 0:01:30]} 78. Qe5+ {[%emt 0:01:00]} Kc8 {[%emt 0:00:00]} 79. Kb6 {[%emt 0:01:30]} Kd8 {[%emt 0:01:00]} 80. Qh8+ {[%emt 0:00:30]} 1-0

[Event "33rd ECCC Open 2017"]
[Site "Antalya"]
[Date "2017.10.12"]
[Round "5"]
[White "Ashton, Adam G"]
[Black "Bjornsson, Sigurbjorn"]
[Result "1-0"]
[ECO "C54"]
[WhiteElo "2347"]
[BlackElo "2277"]
[Annotator "NA"]
[PlyCount "111"]
[EventType "team-tourn"]
[EventCountry "TUR"]
[SourceTitle "playchess.com"]
[Source "ChessBase"]
[SourceQuality "1"]
[WhiteTeam "3CS Oldham"]
[BlackTeam "Fjolnir"]
[TimeControl "40/5400+30:1800+30"]

1. e4 e5 2. Nf3 Nc6 3. Bc4 Bc5 4. d3 Nf6 5. c3 O-O {[%emt 0:01:00]} 6. O-O {[%emt 0:11:00]} d6 {[%emt 0:01:30]} 7. Bb3 {[%emt 0:02:30]} Ne7 {[%emt 0:03:30] C54: Giuoco Piano: 4 c3 Nf6, main lines with 5 d4 and 5 d3} (7... a6 8. Nbd2 Ba7 9. h3 Be6 10. Re1 Re8 11. Nf1 h6 12. Bc2 d5 13. exd5 Qxd5 14. Ng3 Rad8 15. Bd2 Qd6 16. Qc1 Nd5 17. d4 exd4 18. Bxh6 Ne3 19. fxe3 d3 {0-1 (35) Ponomariov,R (2709)-Anton Guijarro,D (2650) Tallinn 2016}) 8. Nh4 {[%emt 0:10:30]} Bg4 {[%emt 0:08:30]} 9. Qe1 {[%emt 0:02:30]} Qd7 {[%emt 0:05:30]} 10. Be3 {[%emt 0:04:30]} Bb6 {[%emt 0:01:30]} 11. Nd2 {[%emt 0:07:30]} Be6 $146 {[%emt 0:06:30]} ({Predecessor:} 11... Ng6 12. Nxg6 hxg6 13. Nc4 Rfe8 14. Nxb6 axb6 15. f3 {½-½ (45) Minor,S (2223)-Naumann,A (2535) Germany 2012}) 12. Nc4 {[%emt 0:10:30]} Ng6 {[%emt 0:02:30]} 13. Nxg6 {[%emt 0:01:30]} fxg6 {[%emt 0:00:30]} 14. f3 {[%emt 0:07:30]} Nh5 {[%emt 0:03:30]} 15. Nxb6 {[%emt 0:12:30]} axb6 {[%emt 0:00:30]} 16. Qd2 {[%emt 0:00:30]} h6 {[%emt 0:09:30]} 17. d4 {[%emt 0:02:30]} exd4 {[%emt 0:05:30]} 18. Qxd4 {[%emt 0:00:30]} g5 {[%emt 0:04:30]} 19. Rfd1 {[%emt 0:05:30]} Qf7 {[%emt 0:03:30]} 20. Bxe6 {[%emt 0:00:30]} Qxe6 {[%emt 0:00:30]} 21. Qd5 {[%emt 0:00:30]} Qxd5 {[%emt 0:01:30]} 22. Rxd5 {[%emt 0:00:30]} Nf6 {[%emt 0:00:30]} 23. Rd4 {[%emt 0:08:55]} g4 {[%emt 0:01:30]} 24. a3 {[%emt 0:02:30]} gxf3 {[%emt 0:01:30]} 25. gxf3 {[%emt 0:00:05]} Rae8 {[%emt 0:01:30]} 26. c4 {[%emt 0:02:32]} ({Better is} 26. Rd2 $15) 26... Nd7 {[%emt 0:02:30]} 27. Rf1 {[%emt 0:04:07]} Ne5 {[%emt 0:01:30]} 28. Kg2 {[%emt 0:00:18]} Re6 {[%emt 0:02:30]} 29. f4 {[%emt 0:03:02]} Nc6 {[%emt 0:01:30]} 30. Kf3 {[%emt 0:00:27]} Nxd4+ {[%emt 0:05:30]} 31. Bxd4 {[%emt 0:00:02]} Re7 {[%emt 0:02:30]} 32. Rg1 {[%emt 0:00:18]} Kh7 {[%emt 0:02:30]} 33. f5 {[%emt 0:00:59]} b5 {[%emt 0:00:30]} 34. cxb5 {[%emt 0:01:59]} d5 {[%emt 0:00:30]} 35. f6 {[%emt 0:00:56]} dxe4+ {[%emt 0:00:30]} 36. Ke3 {[%emt 0:00:00]} gxf6 {[%emt 0:03:54]} 37. Bc5 {[%emt 0:00:00]} Rff7 {[%emt 0:00:09]} 38. Bxe7 {[%emt 0:00:19]} Rxe7 {[%emt 0:00:27]} 39. a4 {[%emt 0:00:09]} f5 {[%emt 0:12:05]} 40. Kf4 {[%emt 0:00:00]} Rf7 {[%emt 0:04:55]} 41. a5 {[%emt 0:03:52]} c6 {[%emt 0:06:30] [#]} 42. b6 $1 {[%emt 0:09:30]} Rd7 {[%emt 0:03:30]} 43. Kxf5 {[%emt 0:07:08]} Rd5+ {[%emt 0:00:30]} 44. Kf6 {[%emt 0:00:04]} Rd6+ {[%emt 0:17:01]} 45. Kf7 {[%emt 0:01:31]} Rd7+ {[%emt 0:02:28]} 46. Ke6 {[%emt 0:01:51]} Rd5 {[%emt 0:00:14]} 47. b4 {[%emt 0:00:43]} Rb5 {[%emt 0:02:37]} 48. Kf6 {[%emt 0:01:04]} e3 {[%emt 0:04:20]} 49. Rg7+ {[%emt 0:01:54]} Kh8 {[%emt 0:00:04]} 50. Re7 {[%emt 0:03:04]} Rxb4 {[%emt 0:00:39]} 51. Rxe3 {[%emt 0:01:29]} Ra4 {[%emt 0:00:56]} 52. Re5 {[%emt 0:03:03]} Kh7 {[%emt 0:00:31]} 53. h4 {[%emt 0:01:24]} Rxh4 {[%emt 0:01:06]} 54. Re7+ {[%emt 0:00:30]} Kg8 $18 {[%emt 0:00:30]} 55. Rxb7 {[%emt 0:00:00]} Ra4 {[%emt 0:00:00]} 56. Ra7 {[%emt 0:00:18]} 1-0

[Event "33rd ECCC Open 2017"]
[Site "Antalya"]
[Date "2017.10.12"]
[Round "5"]
[White "Csonka, Attila Istvan"]
[Black "Rositsan, Boris"]
[Result "1-0"]
[ECO "B08"]
[WhiteElo "2347"]
[BlackElo "2087"]
[Annotator "NA"]
[PlyCount "153"]
[EventType "team-tourn"]
[EventCountry "TUR"]
[SourceTitle "playchess.com"]
[Source "ChessBase"]
[SourceQuality "1"]
[WhiteTeam "Dunajska Streda"]
[BlackTeam "MAKABI"]
[TimeControl "40/5400+30:1800+30"]

1. e4 {[%emt 0:00:30]} g6 {[%emt 0:01:00]} 2. d4 {[%emt 0:00:30]} Bg7 {[%emt 0:00:30]} 3. Nf3 {[%emt 0:00:30]} d6 {[%emt 0:00:30]} 4. Bc4 {[%emt 0:00:30]} Nf6 {[%emt 0:02:30]} 5. Qe2 {[%emt 0:02:30]} O-O {[%emt 0:04:30]} 6. Bb3 {[%emt 0:01:30]} Bg4 {[%emt 0:01:30]} 7. Nc3 {[%emt 0:01:30]} c6 {[%emt 0:00:30]} 8. Bg5 {[%emt 0:05:30] B08: Pirc Defence: Classical System} a5 $146 {[%emt 0:01:30]} ({Predecessor:} 8... Qa5 9. Bd2 Qh5 10. O-O-O Nbd7 11. Qe3 c5 12. Ne2 Bxf3 13. gxf3 Rac8 14. c3 cxd4 15. Nxd4 {0-1 (42) Kaplivatski,A (2250)-Zoler,D (2497) Israel 2002}) 9. e5 {[%emt 0:04:30]} Bxf3 {[%emt 0:07:30]} 10. Qxf3 {[%emt 0:02:30]} dxe5 {[%emt 0:00:30]} 11. dxe5 {[%emt 0:00:30]} a4 {[%emt 0:08:30]} 12. Nxa4 {[%emt 0:07:30]} Qa5+ {[%emt 0:09:30]} 13. Qc3 {[%emt 0:00:30]} Ne4 {[%emt 0:04:30]} 14. Qxa5 {[%emt 0:01:30]} Rxa5 {[%emt 0:00:30]} 15. Bxe7 {[%emt 0:02:30]} Re8 {[%emt 0:01:30]} 16. Bb4 {[%emt 0:00:30]} Raxe5 {[%emt 0:02:30]} 17. O-O {[%emt 0:00:30]} b5 {[%emt 0:01:30]} 18. Nc3 {[%emt 0:03:30]} Nd2 {[%emt 0:14:30]} 19. Bd6 {[%emt 0:02:30]} Nxb3 {[%emt 0:02:30]} 20. axb3 {[%emt 0:00:30]} R5e6 {[%emt 0:00:30]} 21. Bxb8 {[%emt 0:01:30]} Rxb8 {[%emt 0:00:30]} 22. Rfe1 {[%emt 0:00:30]} Rxe1+ {[%emt 0:02:30]} 23. Rxe1 {[%emt 0:00:00]} b4 {[%emt 0:00:30]} 24. Na4 {[%emt 0:01:00]} Rd8 {[%emt 0:00:30]} 25. Kf1 {[%emt 0:00:30]} Rd2 {[%emt 0:01:30]} 26. Re8+ {[%emt 0:00:30]} Bf8 {[%emt 0:00:30]} 27. c3 {[%emt 0:00:00]} Kg7 {[%emt 0:01:30]} 28. Ke1 {[%emt 0:03:00]} Rd6 {[%emt 0:01:30]} 29. Ke2 {[%emt 0:02:30]} Rd5 {[%emt 0:02:30]} 30. Rc8 {[%emt 0:07:30]} Rd6 {[%emt 0:04:30]} 31. Nc5 {[%emt 0:01:30]} Rd5 {[%emt 0:03:30]} 32. Nd3 {[%emt 0:01:30]} c5 {[%emt 0:03:25]} 33. g4 {[%emt 0:02:30]} h5 {[%emt 0:03:49]} 34. h3 {[%emt 0:00:30]} Be7 {[%emt 0:01:25]} 35. c4 {[%emt 0:02:30]} Rd4 {[%emt 0:01:54]} 36. f3 {[%emt 0:00:30]} hxg4 {[%emt 0:00:12]} 37. hxg4 {[%emt 0:00:00]} f5 {[%emt 0:00:18]} 38. gxf5 {[%emt 0:01:00]} gxf5 {[%emt 0:01:34]} 39. Nxc5 {[%emt 0:00:30]} Rh4 {[%emt 0:00:00]} 40. Nd3 {[%emt 0:00:00]} Rh2+ {[%emt 0:00:53]} 41. Kf1 {[%emt 0:02:00]} Rd2 {[%emt 0:01:30]} 42. Nf4 {[%emt 0:00:30]} Bh4 {[%emt 0:01:30]} 43. Rc7+ {[%emt 0:00:30]} Kg8 {[%emt 0:01:30]} 44. Rb7 {[%emt 0:05:30]} Rf2+ {[%emt 0:01:30]} 45. Kg1 {[%emt 0:00:30]} Rxf3 {[%emt 0:00:30]} 46. Nd5 {[%emt 0:01:30]} f4 {[%emt 0:01:30]} 47. Rxb4 {[%emt 0:03:30]} Bg3 {[%emt 0:03:30]} 48. c5 {[%emt 0:00:30]} Rd3 {[%emt 0:10:30]} 49. Nxf4 {[%emt 0:01:30]} Rd2 {[%emt 0:01:30]} 50. c6 {[%emt 0:00:30]} Rc2 {[%emt 0:00:00]} 51. Nd3 {[%emt 0:00:30]} Bh2+ {[%emt 0:02:00]} 52. Kh1 {[%emt 0:00:30]} Bc7 {[%emt 0:00:30]} 53. Rc4 {[%emt 0:00:00]} Rd2 {[%emt 0:00:00]} 54. Nb4 {[%emt 0:00:00]} Rxb2 {[%emt 0:00:00]} 55. Nd5 {[%emt 0:00:30]} Bd6 {[%emt 0:03:26]} 56. b4 {[%emt 0:00:00]} Kf7 {[%emt 0:00:16]} 57. c7 {[%emt 0:01:00]} Bxc7 {[%emt 0:00:30]} 58. Nxc7 {[%emt 0:00:30]} Ke7 {[%emt 0:00:30]} 59. Kg1 {[%emt 0:00:30]} Kd7 {[%emt 0:00:00]} 60. Nd5 {[%emt 0:00:30]} Kd6 {[%emt 0:00:43]} 61. Nc3 {[%emt 0:02:30]} Kd7 {[%emt 0:00:23]} 62. Kf1 {[%emt 0:00:30]} Kd6 {[%emt 0:01:02]} 63. Ke1 {[%emt 0:00:30]} Kd7 {[%emt 0:00:36]} 64. Kd1 {[%emt 0:00:00]} Rh2 {[%emt 0:00:00]} 65. Kc1 {[%emt 0:00:00]} Rg2 {[%emt 0:00:14]} 66. b5 {[%emt 0:00:30]} Rh2 {[%emt 0:00:47]} 67. b6 {[%emt 0:01:30]} Rh1+ {[%emt 0:01:29]} 68. Kb2 {[%emt 0:00:30]} Rh8 {[%emt 0:00:35]} 69. Kb3 {[%emt 0:00:00]} Rb8 {[%emt 0:00:38]} 70. Na4 {[%emt 0:00:00]} Kd6 {[%emt 0:00:30]} 71. Kb4 {[%emt 0:00:30]} Kd5 {[%emt 0:01:24]} 72. Kb5 {[%emt 0:00:00]} Ra8 {[%emt 0:01:23]} 73. b7 {[%emt 0:03:00]} Rb8 {[%emt 0:00:30]} 74. Nb6+ {[%emt 0:00:30]} Kd6 {[%emt 0:00:00]} 75. Ka6 {[%emt 0:00:30]} Rg8 {[%emt 0:00:14]} 76. Nc8+ {[%emt 0:00:30]} Kd5 {[%emt 0:00:47]} 77. Ne7+ {[%emt 0:00:00]} 1-0

[Event "33rd ECCC Open 2017"]
[Site "Antalya"]
[Date "2017.10.12"]
[Round "5"]
[White "Hove, Esben Kjems"]
[Black "Cirovic, Miroljub"]
[Result "1-0"]
[ECO "A47"]
[WhiteElo "2337"]
[BlackElo "2095"]
[Annotator "NA"]
[PlyCount "82"]
[EventType "team-tourn"]
[EventCountry "TUR"]
[SourceTitle "playchess.com"]
[Source "ChessBase"]
[SourceQuality "1"]
[WhiteTeam "Nordkalotten"]
[BlackTeam "Elektroprivreda"]
[TimeControl "40/5400+30:1800+30"]

1. d4 {[%emt 0:00:30]} Nf6 {[%emt 0:01:00]} 2. Nf3 {[%emt 0:00:30]} e6 {[%emt 0:00:30]} 3. Bf4 {[%emt 0:00:30]} c5 {[%emt 0:00:30]} 4. e3 {[%emt 0:00:30]} cxd4 {[%emt 0:01:30]} 5. exd4 {[%emt 0:00:30]} b6 {[%emt 0:00:30]} 6. Nbd2 {[%emt 0:00:00]} Bb7 {[%emt 0:00:30]} 7. Bd3 {[%emt 0:00:00]} Be7 {[%emt 0:01:30]} 8. h3 {[%emt 0:01:30]} O-O {[%emt 0:01:30]} 9. O-O {[%emt 0:00:30]} d6 {[%emt 0:00:00]} 10. c3 {[%emt 0:01:30]} Nbd7 {[%emt 0:03:00] A47: 1 d4 Nf6 2 Nf3 b6: Torre, London and Colle Systems} 11. Bh2 {[%emt 0:05:30]} (11. Re1 Re8 12. Bh2 a6 13. a4 Nf8 14. Ng5 Qd7 15. Qe2 Bc6 16. Bxa6 Bxa4 17. Bd3 Bc6 18. Nc4 {1-0 (82) Giri,A (2755)-Tomashevsky,E (2731) Moscow 2016}) 11... Qc7 {[%emt 0:04:30]} 12. Re1 {[%emt 0:02:30]} h6 $146 {[%emt 0:02:30]} ({Predecessor:} 12... Rfe8 13. a4 a6 14. Rc1 Bf8 15. Nc4 Bc6 16. Nfd2 {½-½ (55) Maes,V (2118)-Lai,H (2334) Netherlands 2016}) 13. a4 {[%emt 0:02:30]} a6 {[%emt 0:00:30]} 14. c4 {[%emt 0:07:30]} Rfe8 {[%emt 0:09:30]} 15. a5 {[%emt 0:03:30]} bxa5 {[%emt 0:05:30]} 16. Qa4 {[%emt 0:01:30]} Bc6 {[%emt 0:05:30]} 17. Qxa5 {[%emt 0:01:30]} Qb7 {[%emt 0:00:30]} 18. Qa3 {[%emt 0:03:30]} d5 {[%emt 0:08:30]} 19. c5 {[%emt 0:04:30]} a5 {[%emt 0:01:30]} 20. Qc3 {[%emt 0:08:30]} Ne4 {[%emt 0:06:30]} 21. Qc2 {[%emt 0:00:30]} Nxd2 {[%emt 0:06:30]} 22. Qxd2 {[%emt 0:03:30]} Qb4 {[%emt 0:03:30]} 23. Bf4 {[%emt 0:09:30]} Qxd2 {[%emt 0:01:30]} 24. Bxd2 {[%emt 0:02:30]} Reb8 {[%emt 0:01:30]} 25. Bxa5 {[%emt 0:03:30]} Rxb2 {[%emt 0:00:30]} 26. Bc7 {[%emt 0:01:30]} Rba2 {[%emt 0:01:30]} 27. Rxa2 {[%emt 0:01:30]} Rxa2 {[%emt 0:00:00]} 28. Rb1 {[%emt 0:00:30]} Ra7 {[%emt 0:04:00]} 29. Bd6 {[%emt 0:11:30]} Bxd6 $14 {[%emt 0:05:30]} 30. cxd6 {[%emt 0:00:00]} f6 {[%emt 0:01:30]} 31. Rc1 {[%emt 0:02:00]} Nb8 {[%emt 0:00:30]} 32. Bb5 {[%emt 0:00:30]} Bxb5 {[%emt 0:00:30]} 33. Rc8+ {[%emt 0:00:00]} Kf7 {[%emt 0:00:30]} 34. Rc7+ {[%emt 0:00:00]} Nd7 {[%emt 0:02:30]} 35. Rxa7 {[%emt 0:00:30]} g5 {[%emt 0:00:30]} 36. Rb7 {[%emt 0:01:30]} Bc6 {[%emt 0:00:30]} 37. Rc7 {[%emt 0:00:30]} Bb5 {[%emt 0:00:30]} 38. g4 {[%emt 0:04:44]} Ke8 {[%emt 0:01:30]} 39. Ra7 {[%emt 0:01:19]} e5 {[%emt 0:00:30]} 40. dxe5 {[%emt 0:00:00]} fxe5 {[%emt 0:30:30]} 41. Nxe5 {[%emt 0:01:57]} Nxe5 {[%emt 0:00:00]} 1-0